fUSD/lending_fUSD_20250304
["ID","MTS","AMOUNT","RATE_DAILY","PERIOD"]
[355270134,1741049309768,-784.85,0.00012886,2]
[355270135,1741049309790,-2948.79,0.00012886,2]
[355270136,1741049309812,-1319.05663011,0.00012886,2]
[355270137,1741049309871,-5524.77336989,0.00012886,2]
[355270138,1741049309893,-1616.67,0.00012886,2]
[355270139,1741049309915,-1467.86,0.00012886,2]
[355270140,1741049309936,-500.0,0.00012886,2]
[355270141,1741049309957,-890.69663011,0.00012886,2]
[355270142,1741049310041,-5108.78336989,0.00012886,2]
[355270143,1741049310064,-1529.12,0.00012886,2]
[355270144,1741049310087,-2292.52,0.00012886,2]
[355270145,1741049310109,-500.0,0.00012886,2]
[355270146,1741049310134,-500.0,0.00012886,2]
[355270147,1741049310156,-69.57663011,0.00012886,2]
[355270148,1741049310691,-849.12336989,0.00012886,2]
[355270149,1741049310713,-1282.96,0.00012886,2]
[355270150,1741049310735,-1089.76,0.00012886,2]
[355270151,1741049310758,-500.0,0.00012886,2]
[355270152,1741049310780,-1452.75,0.00012886,2]
[355270153,1741049310802,-852.66,0.00012886,2]
[355270154,1741049310824,-2746.94,0.00012886,2]
[355270155,1741049310846,-1055.0,0.00012887,2]
[355270156,1741049310868,-170.80663011,0.00012887,2]
[355270157,1741049310918,-444.32336989,0.00012887,2]
[355270158,1741049310940,-500.0,0.00012887,2]
[355270159,1741049310962,-500.0,0.00012887,2]
[355270160,1741049310983,-500.0,0.00012887,2]
[355270161,1741049311005,-500.0,0.00012887,2]
[355270162,1741049311027,-500.0,0.00012887,2]
[355270163,1741049311049,-500.0,0.00012887,2]
[355270164,1741049311071,-500.0,0.00012887,2]
[355270165,1741049311094,-262.69,0.00012887,2]
[355270166,1741049311117,-500.0,0.00012887,2]
[355270167,1741049311138,-664.81,0.00012887,2]
[355270168,1741049311159,-544.98,0.00012887,2]
[355270169,1741049311182,-695.63,0.00012887,2]
[355270170,1741049311204,-848.95,0.00012887,2]
[355270171,1741049311226,-778.37,0.00012887,2]
[355270172,1741049311249,-500.0,0.00012887,2]
[355270173,1741049311272,-500.0,0.00012887,2]
[355270174,1741049311294,-500.0,0.00012887,2]
[355270175,1741049311316,-260.24663011,0.00012887,2]
[355270176,1741049311498,-395.63336989,0.00012887,2]
[355270177,1741049311523,-500.0,0.00012887,2]
[355270178,1741049311545,-500.0,0.00012887,2]
[355270179,1741049311567,-500.0,0.00012887,2]
[355270180,1741049311589,-500.0,0.00012887,2]
[355270181,1741049311611,-500.0,0.00012887,2]
[355270182,1741049311635,-500.0,0.00012887,2]
[355270183,1741049311657,-731.24,0.00012887,2]
[355270184,1741049311681,-810.58,0.00012887,2]
[355270185,1741049311702,-660.77,0.00012887,2]
[355270186,1741049311723,-777.33,0.00012887,2]
[355270187,1741049311744,-500.0,0.00012887,2]
[355270188,1741049311765,-877.64,0.00012887,2]
[355270189,1741049311787,-705.33,0.00012887,2]
[355270190,1741049311807,-784.36,0.00012887,2]
[355270191,1741049311829,-640.3100969,0.00012887,2]
[355270192,1741049311850,-116.80653321,0.00012887,2]
[355270193,1741049312152,-500.0,0.00012886,2]
[355270194,1741049312175,-899.25,0.00012886,2]
[355270195,1741049312197,-799.35346679,0.00012887,2]
[355270196,1741049312220,-289.50514443,0.00012887,2]
[355270197,1741049312242,-567.8,0.00012887,2]
[355270198,1741049312264,-919.3,0.00012887,2]
[355270199,1741049312288,-837.31,0.00012887,2]
[355270200,1741049312310,-500.0,0.00012887,2]
[355270201,1741049312331,-1111.28,0.00012887,2]
[355270202,1741049312353,-549.89,0.00012887,2]
[355270203,1741049312375,-500.0,0.00012887,2]
[355270204,1741049312397,-500.0,0.00012887,2]
[355270205,1741049312419,-731.87,0.00012887,2]
[355270206,1741049312444,-464.25434768,0.00012887,2]
[355270207,1741049312465,-383.17202873,0.00012887,2]
[355270208,1741049312488,-447.01501237,0.00012887,2]
[355270209,1741049312892,-52.98498763,0.00012887,2]
[355270210,1741049312915,-1826.29,0.00012887,2]
[355270211,1741049312937,-778.25,0.00012887,2]
[355270212,1741049312960,-1672.45,0.00012887,2]
[355270213,1741049312982,-1054.65,0.00012887,2]
[355270214,1741049313004,-539.73,0.00012887,2]
[355270215,1741049313033,-1004.73,0.00012887,2]
[355270216,1741049313056,-1078.87,0.00012887,2]
[355270217,1741049313080,-500.0,0.00012887,2]
[355270218,1741049313103,-859.9,0.00012887,2]
[355270219,1741049313128,-500.0,0.00012887,2]
[355270220,1741049313152,-132.14501237,0.00012887,2]
[355270221,1741049313870,-367.85498763,0.00012887,2]
[355270222,1741049313894,-500.0,0.00012887,2]
[355270223,1741049313919,-1160.76,0.00012887,2]
[355270224,1741049313942,-500.0,0.00012887,2]
[355270225,1741049313966,-500.0,0.00012887,2]
[355270226,1741049313989,-730.05,0.00012887,2]
[355270227,1741049314012,-998.65,0.00012887,2]
[355270228,1741049314034,-500.0,0.00012887,2]
[355270229,1741049314057,-500.0,0.00012887,2]
[355270230,1741049314081,-1046.5,0.00012887,2]
[355270231,1741049314105,-1317.45,0.00012887,2]
[355270232,1741049314128,-722.5,0.00012887,2]
[355270233,1741049314152,-610.69,0.00012887,2]
[355270234,1741049314177,-545.54501237,0.00012887,2]
[355270235,1741049314685,-204.62498763,0.00012887,2]
[355270236,1741049314707,-1617.31,0.00012887,2]
[355270237,1741049314729,-731.43,0.00012887,2]
[355270238,1741049314751,-1033.9,0.00012887,2]
[355270239,1741049314774,-500.0,0.00012887,2]
[355270240,1741049314796,-614.94,0.00012887,2]
[355270241,1741049314819,-1292.38,0.00012887,2]
[355270242,1741049314841,-1293.55,0.00012887,2]
[355270243,1741049314862,-266.93753573,0.00012887,2]
[355270244,1741049314887,-948.26,0.00012887,2]
[355270245,1741049314910,-500.0,0.00012887,2]
[355270246,1741049314932,-977.2,0.00012887,2]
[355270247,1741049314955,-19.46747664,0.00012887,2]
[355270248,1741049315224,-1531.64252336,0.00012887,2]
[355270249,1741049315249,-522.56522816,0.00012887,2]
[355270250,1741049315273,-500.0,0.00012887,2]
[355270251,1741049315295,-656.42,0.00012887,2]
[355270252,1741049315318,-500.0,0.00012887,2]
[355270253,1741049315340,-1052.39,0.00012887,2]
[355270254,1741049315362,-500.0,0.00012887,2]
[355270255,1741049315386,-500.0,0.00012887,2]
[355270256,1741049315409,-1625.94,0.00012887,2]
[355270257,1741049315434,-964.51,0.00012887,2]
[355270258,1741049315456,-811.45,0.00012887,2]
[355270259,1741049315480,-599.13,0.00012887,2]
[355270260,1741049315502,-235.95224848,0.00012887,2]
[355270261,1741049315579,-1049.59775152,0.00012887,2]
[355270262,1741049315602,-500.0,0.00012887,2]
[355270263,1741049315627,-627.18,0.00012887,2]
[355270264,1741049315650,-500.0,0.00012887,2]
[355270265,1741049315673,-622.72,0.00012887,2]
[355270266,1741049315696,-1865.81,0.00012887,2]
[355270267,1741049315717,-500.0,0.00012887,2]
[355270268,1741049315739,-1144.34,0.00012887,2]
[355270269,1741049315761,-677.01,0.00012887,2]
[355270270,1741049315784,-581.08,0.00012887,2]
[355270271,1741049315807,-500.0,0.00012887,2]
[355270272,1741049315829,-500.0,0.00012887,2]
[355270273,1741049315852,-500.0,0.00012887,2]
[355270274,1741049315876,-432.26224848,0.00012887,2]
[355270275,1741049316205,-868.45775152,0.00012887,2]
[355270276,1741049316228,-500.0,0.00012887,2]
[355270277,1741049316252,-654.89,0.00012887,2]
[355270278,1741049316276,-770.02,0.00012887,2]
[355270279,1741049316301,-500.0,0.00012887,2]
[355270280,1741049316323,-1443.45,0.00012887,2]
[355270281,1741049316346,-500.0,0.00012887,2]
[355270282,1741049316372,-500.0,0.00012887,2]
[355270283,1741049316395,-753.18,0.00012887,2]
[355270284,1741049316420,-500.0,0.00012887,2]
[355270285,1741049316447,-657.29,0.00012887,2]
[355270286,1741049316469,-739.9,0.00012887,2]
[355270287,1741049316492,-500.0,0.00012887,2]
[355270288,1741049316515,-500.0,0.00012887,2]
[355270289,1741049316537,-612.81224848,0.00012887,2]
[355270290,1741049316565,-334.72775152,0.00012887,2]
[355270291,1741049316587,-500.0,0.00012887,2]
[355270292,1741049316610,-222.77664334,0.00012887,2]
[355270293,1741049316637,-1316.43,0.00012887,2]
[355270294,1741049316659,-877.72,0.00012887,2]
[355270295,1741049316682,-742.56,0.00012887,2]
[355270296,1741049316704,-500.0,0.00012887,2]
[355270297,1741049316726,-1074.36,0.00012887,2]
[355270298,1741049316748,-916.53,0.00012887,2]
[355270299,1741049316770,-805.6,0.00012887,2]
[355270300,1741049316791,-1261.27,0.00012887,2]
[355270301,1741049316813,-500.0,0.00012887,2]
[355270302,1741049316835,-948.02560514,0.00012887,2]
[355270303,1741049316914,-67.41439486,0.00012887,2]
[355270304,1741049316936,-5195.31,0.00012887,2]
[355270305,1741049316958,-2619.6,0.00012887,2]
[355270306,1741049316979,-1556.96,0.00012887,2]
[355270307,1741049317000,-321.69469089,0.00012887,2]
[355270308,1741049317023,-239.02091425,0.00012887,2]
[355270309,1741049317065,-260.97908575,0.00012887,2]
[355270310,1741049317088,-1655.54,0.00012887,2]
[355270311,1741049317109,-500.0,0.00012887,2]
[355270312,1741049317135,-1569.81,0.00012887,2]
[355270313,1741049317157,-500.0,0.00012887,2]
[355270314,1741049317180,-602.73,0.00012887,2]
[355270315,1741049317203,-1732.05,0.00012887,2]
[355270316,1741049317225,-1329.71,0.00012887,2]
[355270317,1741049317247,-1849.18091425,0.00012887,2]
[355270318,1741049317918,-1413.92908575,0.00012887,2]
[355270319,1741049317940,-900.13,0.00012887,2]
[355270320,1741049317964,-1360.94,0.00012887,2]
[355270321,1741049317986,-1153.37,0.00012887,2]
[355270322,1741049318008,-1104.8,0.00012887,2]
[355270323,1741049318030,-518.7,0.00012887,2]
[355270324,1741049318053,-500.0,0.00012887,2]
[355270325,1741049318076,-500.0,0.00012887,2]
[355270326,1741049318099,-1548.83,0.00012887,2]
[355270327,1741049318125,-999.30091425,0.00012887,2]
[355270328,1741049318152,-9138.09908575,0.00012887,2]
[355270329,1741049318175,-500.0,0.00012887,7]
[355270330,1741049318199,-361.90091425,0.00012887,2]
[355270331,1741049318232,-2844.34908575,0.00012887,2]
[355270332,1741049318266,-1849.9,0.00012887,2]
[355270333,1741049318292,-528.24,0.00012887,2]
[355270334,1741049318315,-500.0,0.00012887,2]
[355270335,1741049318340,-2416.95,0.00012887,2]
[355270336,1741049318363,-1626.72,0.00012887,2]
[355270337,1741049318393,-233.84091425,0.00012887,2]
[355270338,1741049318427,-266.15908575,0.00012887,2]
[355270339,1741049318454,-500.0,0.00012887,2]
[355270340,1741049318478,-1210.54,0.00012887,2]
[355270341,1741049318501,-500.0,0.00012887,2]
[355270342,1741049318527,-1285.87,0.00012887,2]
[355270343,1741049318551,-962.6,0.00012887,2]
[355270344,1741049318574,-778.15,0.00012887,2]
[355270345,1741049318599,-1269.45,0.00012887,2]
[355270346,1741049318627,-1032.11,0.00012887,2]
[355270347,1741049318651,-656.42,0.00012887,2]
[355270348,1741049318675,-1538.70091425,0.00012887,2]
[355270349,1741049318745,-1355.51,0.00012886,2]
[355270350,1741049318770,-518.06908575,0.00012887,2]
[355270351,1741049318794,-808.94,0.00012887,2]
[355270352,1741049318817,-500.0,0.00012887,2]
[355270353,1741049318842,-594.68,0.00012887,2]
[355270354,1741049318874,-992.91,0.00012887,2]
[355270355,1741049318899,-258.43613579,0.00012887,2]
[355270356,1741049318924,-676.17,0.00012887,2]
[355270357,1741049318948,-500.0,0.00012887,2]
[355270358,1741049318972,-500.0,0.00012887,2]
[355270359,1741049318996,-500.0,0.00012887,2]
[355270360,1741049319022,-745.38,0.00012887,2]
[355270361,1741049319046,-2049.90477846,0.00012887,2]
[355270362,1741049319985,-230.94522154,0.00012887,2]
[355270363,1741049320009,-500.0,0.00012887,2]
[355270364,1741049320032,-1048.16,0.00012887,2]
[355270365,1741049320059,-500.0,0.00012887,2]
[355270366,1741049320082,-710.55,0.00012887,2]
[355270367,1741049320104,-500.0,0.00012887,2]
[355270368,1741049320130,-1730.54,0.00012887,2]
[355270369,1741049320153,-2005.9,0.00012887,2]
[355270370,1741049320176,-500.0,0.00012887,2]
[355270371,1741049320199,-994.2,0.00012887,2]
[355270372,1741049320221,-183.9752882,0.00012887,2]
[355270373,1741049320244,-885.29,0.00012887,2]
[355270374,1741049320267,-210.43949026,0.00012887,2]
[355270375,1741049321623,-1216.99,0.00012886,2]
[355270376,1741049321647,-1064.98,0.00012886,2]
[355270377,1741049321670,-2487.91,0.00012886,2]
[355270378,1741049321692,-289.56050974,0.00012887,2]
[355270379,1741049321715,-2144.48,0.00012887,2]
[355270380,1741049321736,-732.0,0.00012887,2]
[355270381,1741049321759,-500.0,0.00012887,2]
[355270382,1741049321784,-909.43,0.00012887,2]
[355270383,1741049321806,-654.64949026,0.00012887,2]
[355270384,1741049321851,-1905.61050974,0.00012887,2]
[355270385,1741049321874,-981.75,0.00012887,2]
[355270386,1741049321896,-1242.6,0.00012887,2]
[355270387,1741049321917,-500.0,0.00012887,2]
[355270388,1741049321938,-500.0,0.00012887,2]
[355270389,1741049321965,-1284.81,0.00012887,2]
[355270390,1741049321991,-2860.87,0.00012887,2]
[355270391,1741049322014,-724.35949026,0.00012887,2]
[355270392,1741049322118,-622.63050974,0.00012887,2]
[355270393,1741049322144,-500.0,0.00012887,2]
[355270394,1741049322168,-626.48,0.00012887,2]
[355270395,1741049322197,-8250.88949026,0.00012887,2]
[355270396,1741049328479,-907.87,0.00012886,2]
[355270397,1741049328518,-1586.55,0.00012886,2]
[355270398,1741049328555,-1562.52,0.00012886,2]
[355270399,1741049328595,-5943.06,0.00012887,2]
[355270400,1741049329013,-10000.0,0.00012887,2]
[355270401,1741049329346,-6088.72050974,0.00012887,2]
[355270402,1741049329384,-500.0,0.00012887,2]
[355270403,1741049329422,-500.0,0.00012887,2]
[355270404,1741049329453,-879.72,0.00012887,2]
[355270405,1741049329479,-673.99,0.00012887,2]
[355270406,1741049329502,-500.0,0.00012887,2]
[355270407,1741049329528,-857.56949026,0.00012887,2]
[355270408,1741049330178,-445.23050974,0.00012887,2]
[355270409,1741049330201,-1376.35,0.00012887,2]
[355270410,1741049330223,-500.0,0.00012887,2]
[355270411,1741049330245,-1100.2,0.00012887,2]
[355270412,1741049330267,-693.56,0.00012887,2]
[355270413,1741049330288,-787.94,0.00012887,2]
[355270414,1741049330310,-2156.02,0.00012887,2]
[355270415,1741049330333,-2940.69949026,0.00012887,2]
[355270416,1741049330452,-500.0,0.00012886,2]
[355270417,1741049330475,-225.84050974,0.00012887,2]
[355270418,1741049330496,-1007.45,0.00012887,2]
[355270419,1741049330518,-500.0,0.00012887,2]
[355270420,1741049330541,-500.0,0.00012887,2]
[355270421,1741049330562,-4161.41,0.00012887,2]
[355270422,1741049330583,-771.01,0.00012887,2]
[355270423,1741049330606,-500.0,0.00012887,2]
[355270424,1741049330629,-500.0,0.00012887,2]
[355270425,1741049330651,-500.0,0.00012887,2]
[355270426,1741049330673,-834.28949026,0.00012887,2]
[355270427,1741049331158,-10000.0,0.00012887,2]
[355270428,1741049331490,-10000.0,0.00012887,2]
[355270429,1741049332402,-9894.14050974,0.00012887,2]
[355270430,1741049332425,-105.85949026,0.00012887,2]
[355270431,1741049338402,-1817.73,0.00012886,2]
[355270432,1741049338425,-1504.4,0.00012886,2]
[355270433,1741049338449,-577.61,0.00012886,2]
[355270434,1741049338472,-2434.94,0.00012886,2]
[355270435,1741049338496,-1769.13,0.00012886,2]
[355270436,1741049338520,-1896.19,0.00012886,2]
[355270437,1741049338778,-89.41,0.00012886,2]
[355270438,1741049338801,-672.98050974,0.00012887,2]
[355270439,1741049338822,-500.0,0.00012887,2]
[355270440,1741049338844,-1110.32,0.00012887,2]
[355270441,1741049338866,-849.29,0.00012887,2]
[355270442,1741049338889,-500.0,0.00012887,2]
[355270443,1741049338910,-500.0,0.00012887,2]
[355270444,1741049338932,-552.66,0.00012887,2]
[355270445,1741049338953,-1101.2,0.00012887,2]
[355270446,1741049338975,-3981.21,0.00012887,2]
[355270447,1741049338998,-142.92949026,0.00012887,2]
[355270448,1741049339140,-357.07050974,0.00012887,2]
[355270449,1741049339164,-500.0,0.00012887,2]
[355270450,1741049339187,-1009.01,0.00012887,2]
[355270451,1741049339209,-850.26,0.00012887,2]
[355270452,1741049339232,-1489.75,0.00012887,2]
[355270453,1741049339255,-1394.54,0.00012887,2]
[355270454,1741049339278,-1080.25,0.00012887,2]
[355270455,1741049339301,-1809.96,0.00012887,2]
[355270456,1741049339323,-1509.15949026,0.00012887,2]
[355270457,1741049339497,-975.17050974,0.00012887,2]
[355270458,1741049339520,-500.0,0.00012887,2]
[355270459,1741049339542,-500.0,0.00012887,2]
[355270460,1741049339563,-500.0,0.00012887,2]
[355270461,1741049339585,-500.0,0.00012887,2]
[355270462,1741049339608,-500.0,0.00012888,2]
[355270463,1741049339630,-500.0,0.00012888,2]
[355270464,1741049339653,-500.0,0.00012888,2]
[355270465,1741049339675,-907.69,0.00012888,2]
[355270466,1741049339697,-659.25,0.00012888,2]
[355270467,1741049339719,-802.85,0.00012888,2]
[355270468,1741049339741,-500.0,0.00012888,2]
[355270469,1741049339762,-500.0,0.00012888,2]
[355270470,1741049339783,-500.0,0.00012888,2]
[355270471,1741049339805,-622.34,0.00012888,2]
[355270472,1741049339826,-500.0,0.00012888,2]
[355270473,1741049339852,-500.0,0.00012888,2]
[355270474,1741049339874,-32.69949026,0.00012888,2]
[355270475,1741049340065,-467.30050974,0.00012888,2]
[355270476,1741049340088,-694.17,0.00012888,2]
[355270477,1741049340111,-865.36,0.00012888,2]
[355270478,1741049340133,-506.43,0.00012888,2]
[355270479,1741049340156,-520.34,0.00012888,2]
[355270480,1741049340178,-500.0,0.00012888,2]
[355270481,1741049340201,-710.18,0.00012888,2]
[355270482,1741049340223,-611.59,0.00012888,2]
[355270483,1741049340245,-500.0,0.00012888,2]
[355270484,1741049340268,-500.0,0.00012888,2]
[355270485,1741049340290,-696.42,0.00012888,2]
[355270486,1741049340312,-844.95,0.00012888,2]
[355270487,1741049340335,-500.0,0.00012888,2]
[355270488,1741049340357,-654.88,0.00012888,2]
[355270489,1741049340380,-500.0,0.00012888,2]
[355270490,1741049340404,-500.0,0.00012888,2]
[355270491,1741049340432,-213.46,0.00012888,2]
[355270492,1741049340457,-214.91949026,0.00012888,2]
[355270493,1741049340948,-285.08050974,0.00012888,2]
[355270494,1741049340971,-593.28,0.00012888,2]
[355270495,1741049340992,-500.0,0.00012888,2]
[355270496,1741049341014,-1084.09,0.00012888,2]
[355270497,1741049341036,-500.0,0.00012888,2]
[355270498,1741049341059,-500.0,0.00012888,2]
[355270499,1741049341082,-608.35,0.00012888,2]
[355270500,1741049341118,-500.0,0.00012888,2]
[355270501,1741049341147,-2164.3,0.00012888,2]
[355270502,1741049341172,-500.0,0.00012888,2]
[355270503,1741049341197,-500.0,0.00012888,2]
[355270504,1741049341222,-840.84,0.00012888,2]
[355270505,1741049341247,-500.0,0.00012888,2]
[355270506,1741049341272,-924.05949026,0.00012888,2]
[355270507,1741049341310,-1858.38050974,0.00012888,2]
[355270508,1741049341333,-500.0,0.00012888,2]
[355270509,1741049341357,-1129.09,0.00012888,2]
[355270510,1741049341380,-1140.3,0.00012888,2]
[355270511,1741049341726,-1211.71,0.00012888,2]
[355270512,1741049341750,-500.0,0.00012888,2]
[355270513,1741049341773,-500.0,0.00012888,2]
[355270514,1741049341796,-1009.84,0.00012888,2]
[355270515,1741049341818,-1613.2,0.00012888,2]
[355270516,1741049341841,-537.47949026,0.00012888,2]
[355270517,1741049342040,-701.37,0.00012886,2]
[355270518,1741049342063,-836.09050974,0.00012888,2]
[355270519,1741049342086,-1195.3,0.00012888,2]
[355270520,1741049342112,-500.0,0.00012888,2]
[355270521,1741049342137,-1619.51,0.00012888,2]
[355270522,1741049342160,-1907.49,0.00012888,2]
[355270523,1741049342183,-1052.54,0.00012888,2]
[355270524,1741049342206,-154.70989028,0.00012888,2]
[355270525,1741049342228,-1350.03,0.00012888,2]
[355270526,1741049342251,-500.0,0.00012888,2]
[355270527,1741049342274,-182.95959998,0.00012888,2]
[355270528,1741049342550,-500.0,0.00012887,2]
[355270529,1741049342574,-1492.28040002,0.00012888,2]
[355270530,1741049342597,-1017.0,0.00012888,2]
[355270531,1741049342620,-1870.29,0.00012888,2]
[355270532,1741049342649,-1907.0,0.00012888,2]
[355270533,1741049342673,-1861.47,0.00012888,2]
[355270534,1741049342696,-1351.95959998,0.00012888,2]
[355270538,1741049349226,-500.0,0.00012886,2]
[355270539,1741049349249,-500.0,0.00012886,2]
[355270540,1741049349273,-965.11,0.00012886,2]
[355270541,1741049349296,-6079.82,0.00012886,2]
[355270542,1741049349318,-500.0,0.00012886,2]
[355270543,1741049349340,-1360.94,0.00012886,2]
[355270544,1741049349363,-94.13,0.00012886,2]
[355270545,1741049350138,-405.87,0.00012886,2]
[355270546,1741049350162,-1750.19,0.00012886,2]
[355270547,1741049350185,-500.0,0.00012887,2]
[355270548,1741049350208,-3141.95,0.00012887,2]
[355270549,1741049350230,-500.0,0.00012887,2]
[355270550,1741049350252,-2074.12,0.00012887,2]
[355270551,1741049350274,-28.02040002,0.00012888,2]
[355270552,1741049350297,-1599.84959998,0.00012888,2]
[355270553,1741049351234,-637.11,0.00012886,2]
[355270554,1741049351257,-500.0,0.00012886,2]
[355270555,1741049351280,-869.87,0.00012887,2]
[355270556,1741049351303,-248.43040002,0.00012888,2]
[355270557,1741049351325,-1045.07,0.00012888,2]
[355270558,1741049351347,-850.62,0.00012888,2]
[355270559,1741049351369,-1588.71,0.00012888,2]
[355270560,1741049351393,-1521.72,0.00012888,2]
[355270561,1741049351414,-2129.98,0.00012888,2]
[355270562,1741049351438,-608.48959998,0.00012888,2]
[355270565,1741049390557,-2686.52,0.00012886,2]
[355270566,1741049390580,-500.0,0.00012886,2]
[355270567,1741049390602,-1602.76,0.00012886,2]
[355270568,1741049390626,-666.64,0.00012886,2]
[355270569,1741049390649,-500.0,0.00012886,2]
[355270570,1741049390673,-745.82,0.00012886,2]
[355270571,1741049390698,-3072.66,0.00012886,2]
[355270572,1741049390722,-225.6,0.00012886,2]
[355270573,1741049391104,-9489.41,0.00012886,2]
[355270574,1741049391127,-510.59,0.00012886,2]
[355270575,1741049391559,-855.24,0.00012886,2]
[355270576,1741049391584,-745.94,0.00012886,2]
[355270577,1741049391607,-1236.29,0.00012886,2]
[355270578,1741049391631,-984.36,0.00012886,2]
[355270579,1741049391654,-300.0,0.00012886,2]
[355270580,1741049391677,-2316.25,0.00012886,2]
[355270581,1741049391700,-3561.92,0.00012886,2]
[355270582,1741049391872,-10000.0,0.00012886,2]
[355270583,1741049392622,-3681.39,0.00012886,2]
[355270584,1741049392646,-522.27,0.00012886,2]
[355270585,1741049392668,-500.0,0.00012886,2]
[355270586,1741049392692,-628.55,0.00012886,2]
[355270587,1741049392714,-500.0,0.00012886,2]
[355270588,1741049392736,-962.87,0.00012886,2]
[355270589,1741049392758,-3204.92,0.00012886,2]
[355270590,1741049393201,-451.55,0.00012886,2]
[355270591,1741049393225,-1552.19,0.00012886,2]
[355270592,1741049393248,-1970.76,0.00012886,2]
[355270593,1741049393270,-813.57,0.00012886,2]
[355270594,1741049393297,-622.34,0.00012887,2]
[355270595,1741049393321,-3711.9,0.00012887,2]
[355270596,1741049393343,-851.53,0.00012887,2]
[355270597,1741049393365,-26.16,0.00012887,2]
[355270598,1741049393758,-473.84,0.00012887,2]
[355270599,1741049393782,-500.0,0.00012887,2]
[355270600,1741049393804,-805.8,0.00012887,2]
[355270601,1741049393827,-2586.19,0.00012887,2]
[355270602,1741049393850,-500.0,0.00012887,2]
[355270603,1741049393872,-500.0,0.00012887,2]
[355270604,1741049393894,-1293.76,0.00012887,2]
[355270605,1741049393916,-2666.5,0.00012887,2]
[355270606,1741049393944,-284.59040002,0.00012888,2]
[355270607,1741049393967,-389.31959998,0.00012888,2]
[355270608,1741049404272,-500.0,0.00012886,2]
[355270609,1741049404299,-601.74,0.00012886,2]
[355270610,1741049404324,-1300.77,0.00012886,2]
[355270611,1741049404375,-1112.39,0.00012886,2]
[355270612,1741049404441,-922.49,0.00012886,2]
[355270613,1741049404497,-150.0,0.00012887,2]
[355270614,1741049404551,-665.25,0.00012887,2]
[355270615,1741049404606,-500.0,0.00012887,2]
[355270616,1741049404668,-3584.47,0.00012887,2]
[355270617,1741049404695,-500.0,0.00012887,2]
[355270618,1741049404721,-162.89,0.00012888,2]
[355270619,1741049405425,-1505.44,0.00012886,2]
[355270620,1741049405480,-987.72040002,0.00012888,2]
[355270621,1741049405539,-1024.49,0.00012888,2]
[355270622,1741049405607,-1296.96,0.00012888,2]
[355270623,1741049405659,-500.0,0.00012888,2]
[355270624,1741049405714,-1768.07,0.00012888,2]
[355270625,1741049405764,-1980.17,0.00012888,2]
[355270626,1741049405812,-556.69,0.00012888,2]
[355270627,1741049405862,-380.45959998,0.00012888,2]
[355270647,1741049432165,-500.0,0.00012886,2]
[355270648,1741049432177,-1507.99,0.00012886,2]
[355270649,1741049432186,-658.09,0.00012886,2]
[355270650,1741049432196,-500.0,0.00012886,2]
[355270651,1741049432207,-500.0,0.00012886,2]
[355270652,1741049432217,-610.72,0.00012886,2]
[355270653,1741049432227,-500.0,0.00012886,2]
[355270654,1741049432237,-569.9,0.00012886,2]
[355270655,1741049432246,-8674.8236,0.00012886,2]
[355270656,1741049432258,-387.0,0.00012886,2]
[355270657,1741049432277,-92.4864,0.00012886,2]